Cogmind - Beta 14 @@@ ROGUE MODE // 2024.10.06 @ 17:34:11 Player: OctagonalPrism Result: Destroyed by BR-OZ0(R) with Subdweller Machine Gun Performance ------------- Evolutions (0) 0 Regions Visited (2) 400 Robots Destroyed (30) 150 Value Destroyed (682) 682 Prototype IDs (5) 100 Alien Tech Used (0) 0 Bonus (0) 0 TOTAL SCORE: 1332 Bonus ------- None Cogmind --------- Core Integrity 0/250 Matter 230/300 Energy 100/100 System Corruption 2% Temperature Cool (0) Movement Treading (320) Ox2 Location -10/Subcaves Parts ------- > --- POWER (1) -------- (None) > --- PROPULSION (2) --- Light Treads > --- UTILITY (2) ------ High-capacity Storage Unit Structural Scanner > --- WEAPON (2) ------- Light Cannon Battle Cannon > --- INVENTORY (20) --- Ion Engine Ion Engine Light Treads Compact Wheel Compact Wheel Large Storage Unit Large Matter Pod (150) Signal Interpreter Improved Terrain Scanner Propulsion Shielding Scrap Shield Tractor Beam Particle Cannon Particle Cannon Assault Rifle Battle Rifle Subdweller Machine Gun Subdweller Shrapnel Launcher Mining Laser Peak State ------------ > --- POWER ------------ Ion Engine > --- PROPULSION ------- Light Treads Subdweller Monowheel > --- UTILITY ---------- High-capacity Storage Unit Structural Scanner > --- WEAPON ----------- Light Cannon Battle Cannon > --- INVENTORY -------- Ion Engine Ion Engine Light Treads Compact Wheel Compact Wheel Large Storage Unit Large Matter Pod Signal Interpreter Improved Terrain Scanner Propulsion Shielding Scrap Shield Tractor Beam Particle Cannon Particle Cannon Assault Rifle Assault Rifle Assault Rifle Assault Rifle Mining Laser [Rating: 11] Favorites ----------- Power Ion Engine Engine Ion Engine Propulsion Light Treads Treads Light Treads Wheel Compact Wheel Utility High-capacity Storage Unit Device Structural Scanner Storage High-capacity Storage Unit Protection Propulsion Shielding Weapon Assault Rifle Ballistic Gun Assault Rifle Ballistic Cannon Light Cannon Special Weapon Mining Laser Build | -11 -10 -10 ------- Run | Yrd Mat Sub Slots Evolved . | . . . Power . | . . . Propulsion . | . . . Utility . | . . . Weapon . | . . . Parts Attached 30 | 6 20 4 Power 2 | 1 1 . Engine 2 | 1 1 . Core . | . . . Reactor . | . . . Propulsion 8 | 2 5 1 Treads 4 | 2 2 . Leg . | . . . Wheel 4 | . 3 1 Hover . | . . . Flight . | . . . Utility 10 | 1 9 . Device 5 | . 5 . Storage 4 | 1 3 . Processor . | . . . Hackware . | . . . Protection 1 | . 1 . Artifact . | . . . Weapon 10 | 2 5 3 Energy Gun . | . . . Energy Cannon . | . . . Ballistic Gun 4 | 2 2 . Ballistic Cannon 4 | . 2 2 Launcher . | . . . Special Weapon 2 | . 1 1 Impact Weapon . | . . . Slashing Weapon . | . . . Piercing Weapon . | . . . Special Melee Weapon . | . . . Unidentified Prototypes . | . . . Parts Lost 3 | . 1 2 Power 1 | . . 1 Propulsion 1 | . . 1 Utility 1 | . 1 . Weapon . | . . . Highest Loss Streak 2 | . 1 2 To Critical Strikes . | . . . Average Slot Usage (%) 97 | . 96 99 Engine 13 | . 14 13 Treads 15 | . 15 14 Wheel 12 | . 12 14 Device 10 | . 9 14 Storage 14 | . 14 14 Protection 1 | . 2 . Ballistic Gun 16 | . 21 2 Ballistic Cannon 9 | . 6 18 Special Weapon 1 | . . 6 Peak Build Rating 11 | 6 9 11 Average Rating 8 | 4 8 10 On Entrance 5 | . 6 9 Naked Turns . | . . . Heaviest Build 52 | 13 51 52 Greatest Support 40 | 40 40 20 Greatest Overweight (x) 5 | . 5 3 Average Overweight (x) 2 | . 2 2 Largest Inventory Capacity 20 | 8 20 20 Average Capacity 18 | 6 18 20 Most Carried 20 | 3 17 20 Average Carried 13 | 1 11 18 Final Capacity 20 | 8 20 20 Final Carried 20 | 3 16 20 Class Distribution -------------------- 87% | Mutant 12% | Scavenger-Mutant Dominant Class ---------------- Mutant | -10/Materials Mutant | -10/Subcaves Resources | -11 -10 -10 ----------- Run | Yrd Mat Sub Matter Collected 1134 | 192 722 220 Remotely 47 | . 47 . Salvage Created 848 | 18 701 129 Parts 71 | 3 59 9 Haulers Intercepted 1 | . 1 . Recyclers Shooed 4 | . 4 . Parts Field Recycled . | . . . Retrieved Matter . | . . . Parts Self-Destructed 6 | . . 6 Prevented . | . . . Kills | -11 -10 -10 ------- Run | Yrd Mat Sub Combat Hostiles Destroyed 20 | . 16 4 Guns 13 | . 13 . Cannons 7 | . 3 4 Classes Destroyed 9 | 1 7 1 Builder 2 | . 2 . Tunneler 2 | 1 1 . Hauler 1 | . 1 . Recycler 1 | . 1 . Operator 2 | . 2 . Watcher 2 | . 2 . Swarmer 6 | . 6 . Grunt 10 | . 10 . Subdweller 4 | . . 4 Best Kill Streak 4 | 1 4 1 Combat Bots Only 4 | . 4 1 Max Kills in Single Turn 2 | 1 2 1 Gunslinging 1 | . 1 . Exploded . | . . . Melee . | . . . Uniques/NPCs Destroyed . | . . . Combat | -11 -10 -10 -------- Run | Yrd Mat Sub Hostile Shots Fired 116 | . 100 16 Missed 28 | . 26 2 Damage Taken 1034 | . 689 345 Core 253 | . 133 120 Absorbed by Shields 135 | . 135 . Redirected to Shielding 6 | . 6 . Regen/Repaired (Parts) 96 | . 96 . Core Remaining (%) 100 | 100 . . Volleys Fired 114 | 1 97 16 Largest 2 | 2 2 2 Hottest 100 | 40 100 100 Shots Fired 218 | 2 188 28 Gun 164 | 2 162 . Cannon 44 | . 20 24 Launcher . | . . . Special 10 | . 6 4 Kinetic 208 | 2 182 24 Thermal 10 | . 6 4 Explosive . | . . . Electromagnetic . | . . . Robot Hit Streak 14 | 1 14 9 Robot Miss Streak 8 | . 8 2 Penetration Max . | . . . Secondary Targets 2 | . 2 . Max Gunslinging Chain 1 | . 1 . Shots Hit Robots 123 | 1 106 16 Core Hits 53 | 1 45 7 Critical Kills . | . . . Critical Parts Destroyed . | . . . Critical Strikes . | . . . Melee Attacks . | . . . Impact . | . . . Slashing . | . . . Piercing . | . . . Sneak Attacks . | . . . Combat Hostiles . | . . . Follow-up Attacks . | . . . Damage Inflicted 1670 | 11 1330 329 Guns 1154 | 11 1143 . Cannons 516 | . 187 329 Explosions . | . . . Melee . | . . . Ramming . | . . . Kinetic 1670 | 11 1330 329 Thermal . | . . . Explosive . | . . . Electromagnetic . | . . . Impact . | . . . Slashing . | . . . Piercing . | . . . Highest Corruption 2 | . 2 2 Average Corruption 2 | . 2 2 Corruption Purged . | . . . Corruption Blocked . | . . . Effects 17 | . 12 5 Message Errors 6 | . 3 3 Matter Fused 3 | . 3 . Heat Flow Errors 4 | . 3 1 Data Loss (minor) 4 | . 3 1 Overload Shots . | . . . Overflow Damage . | . . . Projectiles . | . . . Explosions . | . . . Melee . | . . . Knockbacks 5 | . 3 2 Impact . | . . . Kinetic 5 | . 3 2 Secondary . | . . . Self-Inflicted Damage . | . . . Shots . | . . . Rammed . | . . . Targets Rammed . | . . . Kicked . | . . . Crushed . | . . . Highest Temperature 260 | . 260 241 Average Temperature 55 | . 51 121 Received Heat Transfer 355 | . 301 54 Siege Activations . | . . . Robots Corrupted . | . . . Combat Hostiles . | . . . Parts Fried . | . . . Impact Corruptions . | . . . Robots Melted . | . . . Combat Hostiles . | . . . Parts Melted . | . . . Heat Transferred . | . . . Parts Sabotaged . | . . . Parts Stolen . | . . . Parts Stripped . | . . . Power Chain Reactions . | . . . Alert | -11 -10 -10 ------- Run | Yrd Mat Sub Peak Influence 223 | 5 223 . Initial 3 | . 3 . Average 91 | 1 97 . Maximum Alert Level 1 | . 1 . Low Security (%) 94 | 100 94 . Level 1 5 | . 5 . Level 2 . | . . . Level 3 . | . . . Level 4 . | . . . Level 5 . | . . . High Security . | . . . Max Security . | . . . Squads Dispatched 3 | . 3 . Investigation 2 | . 2 . Extermination . | . . . Reinforcement 1 | . 1 . Assault . | . . . Garrison . | . . . Intercept . | . . . Searches Triggered . | . . . Construction Impeded . | . . . Haulers Reinforced . | . . . Active Scanning Responses . | . . . Cargo Convoy Interrupts . | . . . Stealth | -11 -10 -10 --------- Run | Yrd Mat Sub Distress Signals 3 | . 3 . Communications Jammed . | . . . Distress Signals . | . . . Times Spotted 31 | . 27 4 Peak Tracking Total 6 | . 6 2 Tactical Retreats 2 | . 2 . Traps | -11 -10 -10 ------- Run | Yrd Mat Sub Traps Triggered 2 | . 2 . Indirectly . | . . . Trap Hack Attempts . | . . . Triggered . | . . . Disarmed . | . . . Reprogrammed . | . . . Reused . | . . . Traps Extracted . | . . . Installed . | . . . Triggered 1 | . . 1 Machines | -11 -10 -10 ---------- Run | Yrd Mat Sub Machines Disabled . | . . . Max in Single Turn . | . . . Machines Repaired . | . . . Machines Dismantled . | . . . Machines Sabotaged . | . . . Overloaded Fab Kills . | . . . Hacking | -11 -10 -10 --------- Run | Yrd Mat Sub Machines Accessed 10 | . 10 . Terminals 7 | . 7 . Fabricators . | . . . Repair Stations 1 | . 1 . Recycling Units 2 | . 2 . Scanalyzers . | . . . Garrison Access . | . . . Total Hacks 30 | . 30 . Successful 19 | . 19 . Failed 11 | . 11 . Catastrophic 1 | . 1 . Database Lockouts . | . . . Manual 15 | . 15 . Terminals 19 | . 19 . Fabricators . | . . . Repair Stations 3 | . 3 . Recycling Units 8 | . 8 . Scanalyzers . | . . . Garrison Access . | . . . Terminal Hacks 8 | . 8 . Robot Analysis 1 | . 1 . Prototype ID Bank 3 | . 3 . Locate Traps 2 | . 2 . Zone Layout 2 | . 2 . Fabricator Hacks . | . . . Repair Station Hacks 2 | . 2 . Scan Component 1 | . 1 . Repair 1 | . 1 . Recycling Unit Hacks 5 | . 5 . Report Inventory 2 | . 2 . Retrieve Matter 1 | . 1 . Retrieve Components 2 | . 2 . Scanalyzer . | . . . Garrison Access Hacks . | . . . Unauthorized Hacks 4 | . 4 . Terminals 2 | . 2 . Botnet 2 | . 2 . Fabricators . | . . . Repair Stations . | . . . Recycling Units 2 | . 2 . Reject 1 | . 1 . Mask 1 | . 1 . Scanalyzers . | . . . Garrison Access . | . . . Data Cores Recovered 1 | . 1 . Used 1 | . 1 . Hacking Detections 8 | . 8 . Full Trace Events 3 | . 3 . Feedback Events . | . . . Feedback Blocked . | . . . Robot Schematics Acquired . | . . . Robots Built . | . . . Authchips . | . . . Time . | . . . Total Robot Build Rating . | . . . Part Schematics Acquired . | . . . Parts Built . | . . . Authchips . | . . . Time . | . . . Total Part Build Rating . | . . . Parts Repaired 1 | . 1 . Time 26 | . 26 . Parts Recycled . | . . . Recycled Matter . | . . . Retrieved Matter 47 | . 47 . Retrieved Components 18 | . 18 . Parts Scanalyzed . | . . . Part Schematics Acquired . | . . . Parts Damaged . | . . . Bothacking | -11 -10 -10 ------------ Run | Yrd Mat Sub Used RIF Installer . | . . . Robots Hacked . | . . . Non-combat . | . . . Combat . | . . . Robot Hacks Applied . | . . . Relay Couplers Released . | . . . Fabnet Peak Effective % . | . . . Robots Rewired . | . . . Allies Hacked . | . . . Hacks Repelled . | . . . Allies | -11 -10 -10 -------- Run | Yrd Mat Sub Total Allies . | . . . Largest Group . | . . . Highest-Rated Group . | . . . Highest-Rated Ally . | . . . Total Orders . | . . . Ally Attacks . | . . . Total Damage . | . . . Kills . | . . . Allies Corrupted . | . . . Allies Melted . | . . . Intel | -11 -10 -10 ------- Run | Yrd Mat Sub Robot Analysis Total 1 | . 1 . Derelict Logs Recovered . | . . . Drone Launches . | . . . Drone Recoveries . | . . . Exploration | -11 -10 -10 ------------- Run | Yrd Mat Sub Turns Passed 2061 | 89 1464 508 Spaces Moved 1089 | 50 716 323 Core 5 | 5 . . Treads 136 | 45 91 . Legs . | . . . Wheels 948 | . 625 323 Hover . | . . . Flight . | . . . Fastest Speed 50 | 50 140 130 Average Speed 144 | 149 147 137 Slowest Speed 240 | 160 240 145 Overloaded Moves . | . . . Propulsion Burnouts . | . . . Robots Hopped . | . . . Cave-ins Triggered . | . . . Exploration Rate (%) 36 | 4 78 28 Regions Visited 2 Branch Regions 1 Pre-discovered Areas . | . . . Known Exits Taken . | . . . Unknown Exits Taken 2 | 1 1 . Scrap Searched 3 | . . 3 Spaces Dug . | . . . Terrain Destroyed . | . . . Melee . | . . . Projectile . | . . . AOE . | . . . Terrain Rammed . | . . . Walls Destroyed . | . . . Machines Disabled . | . . . Actions | -11 -10 -10 --------- Run | Yrd Mat Sub Total 1339 | 60 928 351 Wait 74 | 1 73 . Move 1087 | 49 715 323 Hop . | . . . Pick Up 21 | 3 13 5 Fast Attach 11 | 6 5 . Attach 1 | . 1 . Detach 3 | . 3 . Swap 18 | . 14 4 Drop 10 | . 7 3 Fire 114 | 1 97 16 Melee . | . . . Ram . | . . . Kick . | . . . Crush . | . . . Escape Stasis . | . . . Rewire . | . . . Trap . | . . . Miscellaneous . | . . . Route ------- -11/Scrapyard -10/Materials (discovered 5 exits: [*Mat x3] / [Min] / [*Sub]) -10/Subcaves (discovered 2 exits: [*Mat] / [*Rec]) History --------- Turn | Location | Event 5 | -11/Scrapyard | Discovered new exit (range 16) 90 | -11/Scrapyard | Entered Materials 318 | -10/Materials | Build established: Mutant 331 | -10/Materials | Discovered new exit (range 16) 832 | -10/Materials | Discovered new exit (range 9) 939 | -10/Materials | Discovered new exit (range 8) 1123 | -10/Materials | Discovered new exit (range 11) 1203 | -10/Materials | Core integrity fell below 50% 1310 | -10/Materials | Repaired Lgt. Treads 1453 | -10/Materials | Discovered new exit (range 4) 1554 | -10/Materials | Entered Subcaves 1609 | -10/Subcaves | Shifting Twisted Machinery released Riot Gun 1627 | -10/Subcaves | Shifting Twisted Machinery released Scrap Shield 1638 | -10/Subcaves | Discovered new exit (range 11) 1641 | -10/Subcaves | Shifting Twisted Machinery released Battle Cannon 2033 | -10/Subcaves | Discovered new exit (range 16) 2049 | -10/Subcaves | Core integrity fell below 20% 2062 | -10/Subcaves | Destroyed by BR-OZ0(R) with Subdweller Machine Gun Last Messages --------------- 01840_ Found 31 Matter. 01849_ Dropped Assault Rifle. 01855_ Acquired Sub. Shrapnel Launcher. 01860_ Acquired Battle Rifle. 01861_ XH8MGJ STL2W>B0G OT=6T&8C ZGIRHBIVCI 01898_ System corrupted: Heat flow error (+281). 01980_ JX-87T(R) destroyed. 01995_ Acquired 9 matter. 02030_ RD-TO9(R) destroyed. 02033_ EXIT=FOUND 02037_ Acquired 4 matter. 02043_ Acquired 6 matter. 02045_ EU-Y0S(R) knocked back. 02049_ BR-OZ0(R) affixes Scrap Shield Fragment to Scrap Shield. 02050_ Ion Engine destroyed. 02051_ EU-Y0S(R) destroyed. 02054_ BR-OZ0(R) knocked back. 02060_ Subatomizers dissect the Sub. Monowheel. 02060_ Sub. Monowheel destroyed. Map ----- +----------------------------------------------------+ | ?????????????????????????????????????????????????? | | ?????????????????????????????????????????????????? | | ?????????????????????????????????????????????????? | | ?????????????????????????????????????????????????? | | ?????????????????????????????????????????????????? | | ?????????????????????????????????????????????????? | | ?????????????????????????????????????????????????? | | ?????????????????????????????????????????????????? | | ?????????????????????????????????????????????????? | | ?????????????????????????????????????????????????? | | ?????????????????????????????????????????????????? | | ?????????????????????????????????????????????????? | | ?????????????????????????????????????????????????? | | ??????????????############???????????????????????? | | ?????????????#############???????????????????????? | | ????????????#### ; ##???????????????????????? | | ????????????###; < ;"#???????????????????????? | | ????????????##; "######??????????????????? | | ????????????##; #######??????????????????? | | ????????????### ;## ##??????????????????? | | ????????????### ;#"""##??????????????????? | | ????????????##; ;#"" ##??????????????????? | | ????????????##; ;# ""##??????????????????? | | ????????????##;; ;%;R ######??????????????? | | ????????????#####; ;; ######??????????????? | | ??????????????## ; =@"% " ##??????????????? | | ??????????????####; % ]"" """ ????????????? | | ???????????????###; " ?????????????? | | ???????????????## ; ????????????? | | ?????????????#####;; "" ???????????? | | ?????????????######; "" % ???????????? | | ?????????????## " &##" ## ???????????? | | ?????????????## " *%###### ????????????? | | ?????????????### """"& ####?? ?????????????? | | ?????????????#### " """% ""??????????????????? | | ??????????????#### """ """" "??????????????????? | | ???????????????### """""""" ?????????????????? | | ????????????????### """ ""? ????????????????? | | ??????????????#### ##### ##???????????????????? | | ??????????????#### #########???????????????????? | | ??????????????## ##########??????????????????? | | ??????????????## #### #####?????????????????? | | ??????????????## ###?????????????????? | | ??????????????## ###????????????????? | | ??????????????## ### ???????????????? | | ??????????????### ## ??????????????? | | ??#######?????### % ## ??????????????? | | ?########?????## #### ! ##??????????????? | | #### ##??? #######% "###??????????????? | | ### #### #######] "####??????????????? | +----------------------------------------------------+ Best States ------------- Heat Dissipation 25 Energy Generation 10 Energy Capacity 250 Matter Stores 300 Matter Capacity 300 Sight Range 16 Terrain Scan Density 10 Propulsion Shielding 33 Evasion (%) 40 Recoil Reduction 2 Item Schematics ----------------- None Robot Schematics ------------------ None Fabricated ------------ Nothing Alien Tech Used ----------------- None Achievements -------------- None Challenges ------------ None Game ------ Seed PotentialZhirovSword Manual? 0 Play Time 00:18:59 Cumulative 151.1 hours Start 2024.10.06 @ 17:14:44 End 2024.10.06 @ 17:34:11 Sessions 1 Manual Loads 0 Difficulty Rogue Special Mode None Game No. 127 Rogue 127 Adventurer 0 Explorer 0 Win Type - Total 2 Types 2/0/0/0/0/0/0/0/0 Lore% 58 Gallery% 61 Achievement% 48 Wizard Run 0 Options --------- Layout 2 ASCII 0 Keyboard 0 Movement Numpad Keybinds 0 Fullscreen 1 Font 16/Terminus Map View 55x47 Zoom Use 0% Tactical HUD 1 Map Filters NONE Filters NONE Steam 1 RUN: 29f6cc97-f10e-483a-aafb-847b4aa925d2